bitfinex/quotes_SOLUSD_20241223
["timestamp","ask_amount","ask_price","bid_price","bid_amount"]
[1734978621432,8.12550774,185.73,185.63,9.14431789]
[1734978621634,8.12550774,185.73,185.64,9.14431789]
[1734978622739,0.12549,185.74,185.6,23.776884]
[1734978622943,20.0,185.7,185.61,9.14431789]
[1734978623147,0.12549,185.69,185.58,9.14431789]
[1734978623653,0.12549,185.71,185.58,9.14431789]
[1734978623815,0.12549,185.68,185.57,9.14431789]
[1734978624021,0.12549,185.68,185.55,9.14431789]
[1734978625417,20.0,185.68,185.5,8.88053278]
[1734978625622,0.12549,185.63,185.51,9.14431789]
[1734978626152,0.12549,185.63,185.5,9.14431789]
[1734978626572,20.0,185.6,185.51,9.14431789]
[1734978626971,20.0,185.6,185.52,9.14431789]
[1734978627156,1.3469,185.62,185.52,9.14431789]
[1734978627361,1.3469,185.62,185.53,9.14431789]
[1734978627560,1.3469,185.62,185.54,9.14431789]
[1734978627973,1.47199,185.66,185.54,9.14431789]
[1734978629180,1.47199,185.66,185.53,9.14431789]
[1734978630098,1.47199,185.66,185.49,20.0]
[1734978630099,0.12549,185.61,185.49,20.0]
[1734978630256,0.12549,185.61,185.5,9.14431789]
[1734978630955,0.12549,185.59,185.49,9.14431789]
[1734978631448,1.47259,185.59,185.49,9.14431789]
[1734978632694,1.47259,185.59,185.5,9.14431789]
[1734978633075,1.3471,185.59,185.51,9.14431789]
[1734978634191,1.3471,185.59,185.5,9.14431789]
[1734978634397,1.3471,185.59,185.52,9.14431789]
[1734978634686,1.3471,185.59,185.51,9.14431789]
[1734978635197,0.12549,185.58,185.48,0.6834123]
[1734978635354,20.0,185.55,185.48,0.6834123]
[1734978635552,20.0,185.54,185.48,0.6834123]
[1734978636377,20.0,185.54,185.48,9.82773019]
[1734978636582,20.0,185.54,185.49,9.14431789]
[1734978636985,19.90203,185.54,185.49,9.14431789]
[1734978637796,19.90203,185.54,185.48,9.82773019]
[1734978638088,19.90203,185.54,185.48,0.6834123]
[1734978638470,21.24943,185.54,185.48,0.6834123]
[1734978639569,0.12549,185.51,185.48,0.6834123]
[1734978641191,1.47289,185.53,185.48,0.6834123]
[1734978641769,1.3474,185.53,185.48,0.6834123]
[1734978642177,26.77948828,185.54,185.48,0.6834123]
[1734978642578,1.3472,185.57,185.49,14.29641775]
[1734978642866,6.77948828,185.59,185.49,14.29641775]
[1734978643271,6.77948828,185.59,185.5,14.29641775]
[1734978643565,6.77948828,185.59,185.51,14.29641775]
[1734978643789,1.3467,185.63,185.54,14.29641775]
[1734978644605,1.3467,185.63,185.5,0.8083289]
[1734978644788,1.3467,185.63,185.55,14.29641775]
[1734978644987,6.77948828,185.65,185.56,14.29641775]
[1734978645301,6.77948828,185.65,185.59,14.29641775]
[1734978645459,6.77948828,185.7,185.61,14.29641775]
[1734978645804,6.77948828,185.7,185.63,14.29641775]
[1734978645989,6.77948828,185.74,185.64,14.29641775]
[1734978646296,0.12549,185.73,185.64,14.29641775]
[1734978646505,0.12549,185.73,185.65,14.29641775]
[1734978646702,6.77948828,185.74,185.64,14.29641775]
[1734978647702,20.0,185.71,185.64,14.29641775]
[1734978648288,20.0,185.71,185.63,14.29641775]
[1734978650691,0.12549,185.7,185.6,14.29641775]
[1734978651580,20.0,185.71,185.61,14.29641775]
[1734978652400,20.0,185.71,185.62,14.29641775]
[1734978655391,20.0,185.71,185.61,14.29641775]
[1734978655577,20.0,185.71,185.61,23.776884]
[1734978656395,20.0,185.71,185.61,38.07330175]
[1734978657204,20.0,185.71,185.62,14.29641775]
[1734978657701,20.0,185.71,185.61,38.07330175]
[1734978658573,1.47169,185.7,185.57,14.29641775]
[1734978658778,20.0,185.68,185.57,14.29641775]
[1734978660583,20.0,185.68,185.58,23.776884]
[1734978661303,0.12549,185.67,185.57,14.29641775]
[1734978661484,0.12549,185.67,185.54,7.9858]
[1734978661485,0.12549,185.65,185.52,14.29641775]
[1734978661675,20.12549,185.62,185.52,14.29641775]
[1734978661874,20.0,185.62,185.51,14.29641775]
[1734978662121,20.0,185.62,185.53,14.29641775]
[1734978662287,1.3465,185.66,185.59,14.29641775]
[1734978663083,21.3463,185.69,185.6,14.29641775]
[1734978663381,9.47178828,185.72,185.62,14.29641775]
[1734978663382,8.12558828,185.72,185.62,14.29641775]
[1734978663587,8.12558828,185.72,185.63,14.29641775]
[1734978664405,8.12558828,185.72,185.62,14.29641775]
[1734978664803,0.12549,185.7,185.59,14.29641775]
[1734978665183,20.0,185.68,185.59,14.29641775]
[1734978665388,20.0,185.68,185.6,14.29641775]
[1734978667016,20.0,185.68,185.61,14.29641775]
[1734978667221,20.0,185.68,185.64,14.29641775]
[1734978667520,21.3461,185.72,185.64,14.29641775]
[1734978667894,21.3461,185.72,185.63,14.29641775]
[1734978668598,6.77948828,185.75,185.66,14.29641775]
[1734978668797,8.42373233,185.85,185.7,38.07330175]
[1734978669016,6.77948828,185.82,185.73,14.29641775]
[1734978669214,1.3452,185.84,185.73,14.29641775]
[1734978669600,8.12468828,185.84,185.73,14.29641775]
[1734978669905,8.12468828,185.84,185.75,14.29641775]
[1734978670095,8.12468828,185.84,185.74,23.776884]
[1734978670290,8.12468828,185.84,185.74,38.07330175]
[1734978670487,8.12468828,185.84,185.75,14.29641775]
[1734978670686,6.77948828,185.84,185.76,38.07330175]
[1734978670894,6.77948828,185.84,185.77,14.29641775]
[1734978671721,1.3449,185.88,185.78,14.29641775]
[1734978672094,1.3449,185.88,185.8,14.29641775]
[1734978672430,6.77948828,185.89,185.8,14.29641775]
[1734978673231,20.0,185.86,185.8,14.29641775]
[1734978673810,20.0,185.86,185.77,15.89261775]
[1734978674011,20.0,185.86,185.75,14.29641775]
[1734978674012,21.3451,185.86,185.75,14.29641775]
[1734978674215,21.3451,185.86,185.77,14.29641775]
[1734978674417,20.0,185.86,185.78,23.776884]
[1734978674742,20.0,185.86,185.76,14.29641775]
[1734978674900,20.0,185.86,185.75,14.29641775]
[1734978675106,1.3451,185.85,185.74,14.29641775]
[1734978675399,1.3451,185.85,185.75,14.29641775]
[1734978675637,1.3451,185.85,185.74,14.29641775]
[1734978676100,1.3451,185.85,185.73,14.29641775]
[1734978676301,1.3451,185.85,185.74,14.29641775]
[1734978678332,1.3453,185.83,185.73,23.776884]
[1734978678833,1.3453,185.83,185.73,38.07330175]
[1734978679339,20.0,185.82,185.73,38.07330175]
[1734978679626,20.0,185.82,185.74,14.29641775]
[1734978680337,20.0,185.82,185.77,14.29641775]
[1734978680627,1.3445,185.93,185.8,38.07330175]
[1734978680928,6.90497828,185.92,185.8,38.07330175]
[1734978681234,10.83009428,185.92,185.8,38.07330175]
[1734978681533,10.83009428,185.92,185.81,14.29641775]
[1734978681736,6.77948828,185.92,185.83,14.29641775]
[1734978682205,1.3445,185.93,185.85,14.29641775]
[1734978682400,6.779488,185.95,185.86,14.29641775]
[1734978682605,1.3443,185.96,185.87,14.29641775]
[1734978683009,1.3443,185.96,185.86,14.29641775]
[1734978683228,1.3443,185.96,185.87,14.29641775]
[1734978684328,8.123588,185.99,185.88,14.29641775]
[1734978684541,1.3441,185.99,185.89,14.29641775]
[1734978684834,1.3441,185.99,185.88,14.29641775]
[1734978685421,0.12549,185.98,185.87,14.29641775]
[1734978685631,0.12549,185.96,185.85,14.29641775]
[1734978685939,0.12549,185.94,185.82,14.29641775]
[1734978686103,26.77948828,185.95,185.8,38.07330175]
[1734978686306,26.77948828,185.95,185.79,14.29641775]
[1734978686307,20.12549,185.9,185.79,14.29641775]
[1734978687529,21.47029,185.9,185.78,14.29641775]
[1734978687740,21.47029,185.9,185.79,23.776884]
[1734978688027,21.47029,185.9,185.78,14.29641775]
[1734978689134,21.47029,185.9,185.79,14.29641775]
[1734978689320,21.47029,185.9,185.8,14.29641775]
[1734978690433,21.3448,185.9,185.8,14.29641775]
[1734978690641,1.3448,185.9,185.81,14.29641775]
[1734978691835,1.3448,185.9,185.82,14.29641775]
[1734978692236,1.3448,185.9,185.81,14.29641775]
[1734978693347,1.3448,185.9,185.82,14.29641775]
[1734978693714,1.3448,185.9,185.79,0.80696027]
[1734978693715,20.0,185.91,185.84,14.29641775]
[1734978693916,8.12398828,185.94,185.85,14.29641775]
[1734978694741,2.6886,185.97,185.86,14.29641775]
[1734978694916,0.12549,185.96,185.86,14.29641775]
[1734978695622,0.12549,185.96,185.85,14.29641775]
[1734978695827,1.46989,185.96,185.85,14.29641775]
[1734978696024,1.46989,185.96,185.83,38.07330175]
[1734978696745,21.46989,185.96,185.83,38.07330175]
[1734978698040,21.46989,185.96,185.85,14.29641775]
[1734978698644,21.46989,185.96,185.86,14.29641775]
[1734978699741,21.46989,185.96,185.85,23.776884]
[1734978700045,21.46989,185.96,185.85,14.29641775]
[1734978701737,21.46989,185.96,185.84,14.29641775]
[1734978702042,21.46989,185.96,185.85,23.776884]
[1734978703033,21.46989,185.96,185.83,14.29641775]
[1734978703220,28.24937828,185.96,185.81,14.29641775]
[1734978703421,1.46989,185.96,185.8,14.29641775]
[1734978703623,20.0,185.92,185.81,14.29641775]
[1734978703864,20.0,185.92,185.82,14.29641775]
[1734978704148,20.0,185.92,185.84,14.29641775]
[1734978704316,20.0,185.92,185.85,14.29641775]
[1734978704515,1.3445,185.94,185.86,14.29641775]
[1734978704751,6.77948828,185.95,185.86,14.29641775]
[1734978704752,0.12549,185.96,185.86,14.29641775]
[1734978705349,0.12549,185.96,185.85,14.29641775]
[1734978705644,20.0,185.93,185.82,38.07330175]
[1734978705854,20.12549,185.92,185.78,14.29641775]
[1734978706067,0.12549,185.87,185.76,20.46091775]
[1734978706222,0.12549,185.87,185.77,14.29641775]
[1734978706723,0.12549,185.87,185.76,6.1645]
[1734978706724,1.47049,185.87,185.76,14.29641775]
[1734978706923,1.47049,185.87,185.75,14.29641775]
[1734978708447,1.47049,185.87,185.78,14.29641775]
[1734978709641,1.47049,185.87,185.73,15.77109659]
[1734978709642,1.47049,185.87,185.77,14.29641775]
[1734978709847,1.47049,185.87,185.76,14.29641775]
[1734978710531,1.47049,185.87,185.77,14.29641775]
[1734978716157,1.47049,185.87,185.75,14.29641775]
[1734978716456,1.47049,185.87,185.74,38.07330175]
[1734978717166,1.47049,185.87,185.75,14.29641775]
[1734978718240,1.47049,185.87,185.74,38.07330175]
[1734978718639,1.47049,185.87,185.73,21.51588793]
[1734978718947,0.12549,185.82,185.73,20.01238793]
[1734978719146,0.12549,185.82,185.74,14.29641775]
[1734978719542,20.0,185.83,185.74,14.29641775]
[1734978719746,20.0,185.84,185.74,14.29641775]
[1734978720261,20.0,185.84,185.76,14.29641775]
[1734978720648,20.0,185.84,185.74,23.776884]
[1734978720649,20.0,185.84,185.77,14.29641775]
[1734978720840,20.0,185.84,185.78,14.29641775]
[1734978721043,1.3448,185.9,185.79,14.29641775]
[1734978721348,1.3448,185.9,185.81,14.29641775]
[1734978723360,0.12549,185.89,185.8,14.29641775]
[1734978723549,0.12549,185.87,185.77,14.29641775]
[1734978723750,0.12549,185.87,185.76,14.29641775]
[1734978723966,0.12549,185.87,185.75,14.29641775]
[1734978724163,0.12549,185.87,185.76,14.29641775]
[1734978724365,1.3449,185.88,185.78,14.29641775]
[1734978724554,1.3449,185.88,185.74,13.4596]
[1734978724754,1.3449,185.88,185.77,14.29641775]
[1734978725063,1.3449,185.88,185.78,14.29641775]
[1734978725272,1.3449,185.88,185.79,14.29641775]
[1734978725448,1.3449,185.88,185.8,14.29641775]
[1734978725648,1.3449,185.88,185.73,5.71597018]
[1734978725649,1.345,185.86,185.73,5.71597018]
[1734978725855,0.12549,185.85,185.74,38.07330175]
[1734978726062,0.12549,185.85,185.73,20.01238793]
[1734978726350,0.12549,185.85,185.74,14.29641775]
[1734978726658,0.12549,185.85,185.73,20.01238793]
[1734978726966,0.12549,185.85,185.75,14.29641775]
[1734978727366,1.3452,185.84,185.74,38.07330175]
[1734978727664,0.12549,185.84,185.76,14.29641775]
[1734978727876,20.0,185.85,185.76,14.29641775]
[1734978728370,20.12549,185.86,185.76,14.29641775]
[1734978729275,20.0,185.86,185.78,14.29641775]
[1734978729573,20.0,185.86,185.8,14.29641775]
[1734978730477,20.0,185.86,185.78,14.29641775]
[1734978733189,20.0,185.86,185.79,23.776884]
[1734978733692,20.0,185.86,185.78,14.29641775]
[1734978733894,20.0,185.86,185.8,14.29641775]
[1734978735179,0.12549,185.85,185.76,14.29641775]
[1734978735480,0.12549,185.85,185.73,5.71597018]
[1734978735682,0.12549,185.85,185.74,14.29641775]
[1734978736564,21.3451,185.86,185.78,14.29641775]
[1734978736763,21.3451,185.86,185.76,14.29641775]
[1734978736967,0.12549,185.85,185.76,14.29641775]
[1734978741303,21.3451,185.86,185.76,14.29641775]
[1734978742238,1.3448,185.91,185.82,14.29641775]
[1734978742494,1.3445,185.94,185.86,14.29641775]
[1734978742793,1.3445,185.94,185.8,20.43801775]
[1734978742955,1.3445,185.94,185.79,14.29641775]
[1734978743157,0.12549,185.93,185.78,14.29641775]
[1734978743784,0.12549,185.91,185.78,14.29641775]
[1734978744183,0.12549,185.89,185.78,14.29641775]
[1734978744781,0.12549,185.89,185.8,14.29641775]
[1734978744982,0.12549,185.89,185.79,14.29641775]
[1734978745377,0.12549,185.89,185.8,14.29641775]
[1734978745887,1.3448,185.9,185.8,14.29641775]
[1734978746109,1.3448,185.9,185.81,14.29641775]
[1734978746812,1.3448,185.9,185.82,14.29641775]
[1734978747110,1.3445,185.94,185.82,14.29641775]
[1734978747803,0.12549,185.93,185.82,14.29641775]
[1734978748317,20.0,185.92,185.83,14.29641775]
[1734978748608,0.12549,185.93,185.83,14.29641775]
[1734978749182,21.3445,185.94,185.83,14.29641775]
[1734978749387,1.3445,185.94,185.86,14.29641775]
[1734978749601,1.3445,185.94,185.84,7.5366]
[1734978749602,1.3442,185.98,185.87,14.29641775]
[1734978750484,20.0,185.96,185.87,14.29641775]
[1734978750915,1.3442,185.98,185.87,14.29641775]
[1734978751090,1.3442,185.98,185.88,38.07330175]
[1734978752111,1.3439,186.02,185.88,38.07330175]
[1734978752405,0.12549,185.99,185.88,38.07330175]
[1734978752907,0.12549,185.99,185.9,14.29641775]
[1734978753087,0.12549,186.01,185.9,14.29641775]
[1734978754297,20.0,186.0,185.9,14.29641775]
[1734978754612,20.12549,186.01,185.9,14.29641775]
[1734978755188,1.3437,186.05,185.93,14.29641775]
[1734978755388,1.3437,186.05,185.94,38.07330175]
[1734978755599,0.12549,186.04,185.94,38.07330175]
[1734978756099,5.44987717,186.1,185.96,23.776884]
[1734978756285,1.3435,186.09,185.98,14.29641775]
[1734978756493,1.3435,186.09,185.99,14.29641775]
[1734978756886,1.3435,186.09,185.98,14.29641775]
[1734978757087,1.3435,186.09,185.99,23.776884]
[1734978757511,1.3435,186.09,185.99,14.29641775]
[1734978758215,1.3435,186.09,185.99,23.776884]
[1734978759006,0.12549,186.08,185.99,23.776884]
[1734978759211,0.12549,186.08,185.97,14.29641775]
[1734978759715,0.12549,186.08,185.98,23.776884]
[1734978760221,1.3435,186.09,185.98,38.07330175]
[1734978761345,0.12549,186.08,185.98,23.776884]
[1734978762328,0.12549,186.08,185.98,38.07330175]
[1734978766020,1.3435,186.09,185.98,38.07330175]
[1734978766215,1.3435,186.09,185.99,14.29641775]
[1734978766415,22.0266123,186.12,186.0,14.29641775]
[1734978768728,0.12549,186.11,186.0,14.29641775]
[1734978770920,22.0266123,186.12,185.99,14.29641775]
[1734978770921,0.12549,186.09,185.99,14.29641775]
[1734978776633,0.12549,186.09,186.0,14.29641775]
[1734978779442,0.12549,186.09,185.99,14.29641775]
[1734978779812,0.12549,186.09,185.97,14.29641775]
[1734978780122,0.12549,186.09,185.96,23.776884]
[1734978780327,0.12549,186.07,185.97,9.10137055]
[1734978780534,1.3435,186.08,185.97,9.10137055]
[1734978780829,1.3435,186.08,185.96,32.87825455]
[1734978781006,1.3435,186.08,185.98,9.10137055]
[1734978781504,1.3432,186.11,185.99,32.87825455]
[1734978781707,1.3432,186.11,186.0,9.10137055]
[1734978782331,0.12549,186.1,185.99,32.87825455]
[1734978782909,0.12549,186.1,185.99,23.776884]
[1734978783229,20.12549,186.08,185.96,9.10137055]
[1734978783440,20.12549,186.08,185.92,8.042]
[1734978783733,20.0,186.04,185.94,9.10137055]
[1734978784410,20.12549,186.08,185.94,14.22542271]
[1734978784608,0.12549,186.06,185.94,14.22542271]
[1734978784827,0.12549,186.06,185.93,14.22542271]
[1734978785022,23.902374,186.06,185.92,14.22542271]
[1734978785313,0.12549,186.02,185.88,14.22542271]
[1734978785628,0.12549,185.98,185.86,14.22542271]
[1734978785808,0.12549,185.98,185.87,14.22542271]
[1734978786409,0.12549,185.98,185.86,14.22542271]
[1734978787026,0.12549,185.98,185.87,14.22542271]
[1734978787621,20.0,186.03,185.88,38.00230671]
[1734978787820,0.12549,186.02,185.88,38.00230671]
[1734978788115,0.12549,186.02,185.88,23.776884]
[1734978788504,0.12549,186.02,185.91,14.22542271]
[1734978788700,0.12549,186.04,185.92,38.00230671]
[1734978789129,0.12549,186.04,185.93,14.22542271]
[1734978789428,1.3437,186.05,185.94,38.00230671]
[1734978789627,1.3437,186.05,185.95,14.22542271]
[1734978789843,1.3434,186.09,185.95,14.22542271]
[1734978790006,1.3434,186.09,185.92,23.776884]
[1734978790007,1.3434,186.09,185.97,14.22542271]
[1734978790211,1.3434,186.09,185.98,23.776884]
[1734978790615,0.12549,186.08,185.89,13.4485]
[1734978790817,5.57536717,186.08,185.87,7.6174]
[1734978791042,0.12549,186.06,185.87,21.84282271]
[1734978791208,23.902374,186.04,185.87,14.22542271]
[1734978791423,0.12549,186.02,185.86,14.22542271]
[1734978791727,0.12549,185.98,185.87,14.22542271]
[1734978791947,0.12549,185.98,185.86,14.22542271]
[1734978792151,0.12549,185.98,185.87,14.22542271]
[1734978792323,0.12549,185.98,185.88,23.776884]
[1734978792647,0.12549,185.98,185.88,38.00230671]
[1734978793039,20.0,186.01,185.9,14.22542271]
[1734978793223,20.0,186.01,185.91,38.00230671]
[1734978793429,20.0,186.01,185.91,14.22542271]
[1734978793940,20.0,186.01,185.9,14.22542271]
[1734978794126,20.0,186.01,185.91,23.776884]
[1734978795247,0.12549,186.0,185.91,23.776884]
[1734978795451,1.46949,186.0,185.88,14.22542271]
[1734978795742,1.46949,186.0,185.89,23.776884]
[1734978797055,1.46949,186.0,185.9,14.22542271]
[1734978797228,1.46949,186.0,185.91,14.22542271]
[1734978797638,1.46949,186.0,185.89,38.00230671]
[1734978799051,1.46949,186.0,185.9,14.22542271]
[1734978799536,20.0,186.02,185.91,38.00230671]
[1734978799748,20.0,186.01,185.9,14.22542271]
[1734978800050,0.12549,186.0,185.88,23.776884]
[1734978800550,0.12549,186.0,185.84,14.22542271]
[1734978800848,0.12549,185.92,185.81,14.22542271]
[1734978801258,1.3438,186.03,185.91,14.22542271]
[1734978801552,1.3438,186.03,185.94,14.22542271]
[1734978802301,1.3438,186.03,185.95,14.22542271]
[1734978802426,2.6868,186.09,185.95,14.22542271]
[1734978802755,2.6868,186.09,185.96,14.22542271]
[1734978802913,0.12549,186.08,185.97,14.22542271]
[1734978803718,0.12549,186.06,185.96,14.22542271]
[1734978803917,0.12549,186.06,185.93,0.80635022]
[1734978803918,0.12549,186.06,185.95,14.22542271]
[1734978804119,0.12549,186.06,185.96,23.776884]
[1734978804318,1.3435,186.07,185.96,38.00230671]
[1734978804515,1.3435,186.07,185.96,23.776884]
[1734978804931,0.12549,186.08,185.96,23.776884]
[1734978805848,20.12549,186.08,185.96,23.776884]
[1734978806258,20.12549,186.08,185.96,38.00230671]
[1734978806620,21.46899,186.08,185.94,14.22542271]
[1734978806858,21.46899,186.08,185.93,14.22542271]
[1734978807041,21.46899,186.08,185.94,23.776884]
[1734978807564,24.15599,186.08,185.94,23.776884]
[1734978809058,0.12549,186.03,185.93,14.22542271]
[1734978809235,0.12549,186.03,185.93,23.776884]
[1734978809658,0.12549,186.03,185.93,38.00230671]
[1734978810661,20.0,186.04,185.93,38.00230671]
[1734978810836,20.0,186.05,185.95,14.22542271]
[1734978811330,20.0,186.05,185.96,14.22542271]
[1734978811755,20.0,186.09,185.97,38.00230671]
[1734978812466,0.12549,186.08,185.97,38.00230671]
[1734978812771,20.12549,186.08,185.97,38.00230671]
[1734978813852,20.12549,186.08,185.96,38.00230671]
[1734978814437,20.12549,186.08,185.95,22.23322271]
[1734978814837,20.12549,186.08,185.95,14.22542271]
[1734978817573,20.12549,186.08,185.94,14.22542271]
[1734978817870,0.12549,186.03,185.93,23.776884]
[1734978818244,20.0,186.04,185.95,38.00230671]
[1734978818459,4.26851696,186.07,185.96,14.22542271]
[1734978819169,20.0,186.08,185.97,38.00230671]
[1734978819467,0.12549,186.07,185.97,23.776884]
[1734978820376,0.12549,186.07,185.95,14.22542271]
[1734978820548,0.12549,186.07,185.95,23.776884]
[1734978820876,0.12549,186.07,185.93,14.22542271]
[1734978821075,0.12549,186.07,185.94,23.776884]
[1734978821259,0.12549,186.07,185.94,14.22542271]
[1734978821673,0.12549,186.07,185.95,23.776884]
[1734978821857,23.902374,186.07,185.93,14.22542271]
[1734978822181,0.12549,186.03,185.93,14.22542271]
[1734978826388,0.12549,186.03,185.94,9.10399617]
[1734978827198,0.12549,186.03,185.92,23.776884]
[1734978828092,0.12549,186.03,185.89,9.10399617]
[1734978828300,0.12549,185.99,185.87,9.10399617]
[1734978828466,0.12549,185.99,185.86,9.10399617]
[1734978828791,0.12549,185.99,185.87,9.10399617]
[1734978828988,0.12549,185.99,185.88,9.10399617]
[1734978829391,0.12549,185.99,185.89,9.10399617]
[1734978829579,8.36709936,186.06,185.93,9.10399617]
[1734978829961,0.12549,186.05,185.94,9.10399617]
[1734978830168,0.12549,186.05,185.94,14.22494197]
[1734978830692,20.12549,186.07,185.94,14.22494197]
[1734978834498,0.12549,186.03,185.92,14.22494197]
[1734978834668,0.12549,186.03,185.9,14.22494197]
[1734978834863,0.12549,185.99,185.89,14.22494197]
[1734978835063,0.12549,185.99,185.88,14.22494197]
[1734978835593,0.12549,185.99,185.89,14.22494197]
[1734978836109,0.12549,185.99,185.87,14.22494197]
[1734978836396,0.12549,185.99,185.85,8.60823406]
[1734978836397,0.12549,185.99,185.86,14.22494197]
[1734978836694,0.12549,185.95,185.82,14.22494197]
[1734978837067,0.12549,185.95,185.84,14.22494197]
[1734978837882,23.902374,185.95,185.83,14.22494197]
[1734978838079,26.92549305,185.99,185.8,14.22494197]
[1734978838080,0.12549,185.91,185.8,14.22494197]
[1734978838291,0.12549,185.91,185.81,14.22494197]
[1734978838598,20.0,185.96,185.82,14.22494197]
[1734978838769,20.0,185.96,185.84,14.22494197]
[1734978838980,20.0,185.98,185.85,14.22494197]
[1734978839835,0.12549,185.97,185.87,14.22494197]
[1734978840293,0.12549,185.98,185.87,14.22494197]
[1734978840675,0.12549,185.98,185.86,14.22494197]
[1734978840992,0.12549,185.98,185.82,0.80677226]
[1734978841194,0.12549,185.98,185.7,104.13799714]
[1734978841195,0.12549,185.9,185.77,8.25633285]
[1734978841495,0.12549,185.9,185.78,14.22494197]
[1734978841896,23.902374,185.93,185.77,8.25633285]
[1734978842070,0.12549,185.87,185.75,14.22494197]
[1734978842265,0.12549,185.88,185.75,14.22494197]
[1734978843172,0.12549,185.88,185.77,14.22494197]
[1734978843363,0.12549,185.88,185.76,14.22494197]
[1734978843584,0.12549,185.88,185.75,14.22494197]
[1734978844378,0.12549,185.84,185.73,19.94091215]
[1734978844577,23.902374,185.84,185.73,5.71597018]
[1734978844880,20.12549,185.8,185.66,14.22494197]
[1734978845080,26.27014495,185.8,185.66,14.22494197]
[1734978845284,26.27014495,185.8,185.68,14.22494197]
[1734978846281,26.27014495,185.8,185.71,14.22494197]
[1734978846512,20.12549,185.8,185.71,14.22494197]
[1734978846697,26.14465495,185.85,185.72,14.22494197]
[1734978846891,0.12549,185.84,185.71,14.22494197]
[1734978847086,0.12549,185.8,185.7,14.22494197]
[1734978847408,20.12549,185.8,185.69,14.22494197]
[1734978847590,20.12549,185.8,185.68,14.22494197]
[1734978848411,25.34569304,185.8,185.66,14.22494197]
[1734978849003,0.12549,185.78,185.66,14.22494197]
[1734978849194,20.12549,185.75,185.65,14.22494197]
[1734978849516,0.12549,185.73,185.62,14.22494197]
[1734978849813,0.12549,185.73,185.59,23.776884]
[1734978849814,0.12549,185.73,185.63,14.22494197]
[1734978849987,3.96074582,185.75,185.67,14.22494197]
[1734978850186,26.14465495,185.8,185.68,14.22494197]
[1734978850388,26.14465495,185.8,185.7,14.22494197]
[1734978850587,6.14465495,185.8,185.71,38.00182597]
[1734978850803,6.14465495,185.85,185.73,14.22494197]
[1734978851110,6.14465495,185.83,185.74,14.22494197]
[1734978851783,6.14465495,185.83,185.75,14.22494197]
[1734978852120,6.14465495,185.83,185.77,14.22494197]
[1734978852303,6.14465495,185.83,185.76,14.22494197]
[1734978852506,8.36709936,186.0,185.77,14.22494197]
[1734978852696,0.12549,185.88,185.77,14.22494197]
[1734978852903,6.27014495,185.88,185.77,14.22494197]
[1734978853295,6.14465495,185.88,185.77,14.22494197]
[1734978853726,20.0,185.85,185.77,14.22494197]
[1734978855813,20.0,185.85,185.78,14.22494197]
[1734978856518,20.0,185.85,185.77,14.22494197]
[1734978857187,20.0,185.85,185.76,14.22494197]
[1734978858218,20.0,185.85,185.77,14.22494197]
[1734978859230,20.0,185.85,185.76,14.22494197]
[1734978859399,20.0,185.85,185.75,14.22494197]
[1734978860400,20.0,185.85,185.71,37.238484]
[1734978860401,20.0,185.85,185.76,14.22494197]
[1734978861310,20.0,185.85,185.75,14.22494197]
[1734978861641,20.0,185.85,185.76,14.22494197]
[1734978868231,20.0,185.85,185.75,14.22494197]
[1734978868725,0.12549,185.84,185.71,14.22494197]
[1734978868910,0.12549,185.8,185.7,14.22494197]
[1734978869325,0.12549,185.8,185.69,14.22494197]
[1734978869521,0.12549,185.8,185.68,14.22494197]
[1734978870029,23.902374,185.8,185.67,21.81954197]
[1734978870213,0.12549,185.76,185.67,21.81954197]
[1734978870548,0.12549,185.76,185.68,14.22494197]
[1734978871448,20.0,185.77,185.69,14.22494197]
[1734978871728,20.0,185.81,185.69,14.22494197]
[1734978871923,0.12549,185.8,185.68,14.22494197]
[1734978872144,23.902374,185.8,185.68,14.22494197]
[1734978872443,23.902374,185.8,185.64,14.22494197]
[1734978872444,0.12549,185.76,185.64,14.22494197]
[1734978872627,20.12549,185.76,185.63,22.36134197]
[1734978872940,20.12549,185.76,185.63,14.22494197]
[1734978873229,26.27014495,185.76,185.62,14.22494197]
[1734978873433,0.12549,185.71,185.61,14.22494197]
[1734978873634,0.12549,185.71,185.62,14.22494197]